fUSD/lending_fUSD_20250313
["ID","MTS","AMOUNT","RATE_DAILY","PERIOD"]
[356055922,1741875032082,-2000.0,0.00027773,7]
[356055923,1741875032092,-721.79,0.00027823,2]
[356055925,1741875032102,-2000.0,0.00027827,7]
[356055927,1741875032111,-1147.0,0.00027848,2]
[356055929,1741875032121,-2000.0,0.00027881,7]
[356055931,1741875032131,-1934.0,0.000279,2]
[356055933,1741875032141,-201.89690782,0.000279,4]
[356055935,1741875032154,-2000.0,0.00027934,7]
[356055937,1741875032164,-2000.0,0.00027988,7]
[356055939,1741875032173,-1000.0,0.00028,5]
[356055941,1741875032184,-200.0,0.00028,18]
[356055943,1741875032193,-31161.3325689,0.00028,2]
[356055944,1741875032205,-535.3884398,0.00028,2]
[356055951,1741875037549,-400.0,0.0002735,2]
[356055952,1741875037559,-18303.2789913,0.00028,2]
[356055953,1741875037569,-1147.0,0.00028135,2]
[356055954,1741875037579,-1000.0,0.0002815,5]
[356055955,1741875037589,-289.23885332,0.00028222,2]
[356055956,1741875037599,-150.39439988,0.00028274,2]
[356055957,1741875037609,-313.5533,0.00028276,2]
[356055958,1741875037619,-580.76295975,0.00028276,15]
[356055959,1741875037629,-150.39439972,0.0002828,2]
[356055960,1741875037639,-150.39439972,0.00028286,2]
[356055961,1741875037649,-150.39439972,0.00028292,2]
[356055962,1741875037659,-1768.09515887,0.00028358,2]
[356055963,1741875037669,-11028.80846819,0.00028367,2]
[356055964,1741875037680,-280.2692,0.00028367,2]
[356055965,1741875037692,-552.6000004,0.00028367,2]
[356055966,1741875037718,-7195.9686136,0.00028367,2]
[356055967,1741875037731,-3611.93142741,0.00028367,2]
[356055968,1741875037741,-1248.81683573,0.00028374,15]
[356055969,1741875037751,-500.0,0.00028375,18]
[356055970,1741875037761,-1000.0,0.00028376,25]
[356055971,1741875037771,-1000.0,0.00028376,25]
[356055972,1741875037780,-1078.0,0.00028376,25]
[356055973,1741875037790,-1775.37906911,0.00028376,2]
[356055974,1741875037800,-1775.37906911,0.00028376,2]
[356055975,1741875037810,-1775.37906911,0.00028376,2]
[356055976,1741875037819,-1775.37906911,0.00028376,2]
[356055977,1741875037829,-1775.37906911,0.00028376,2]
[356055978,1741875037839,-1775.37906911,0.00028376,2]
[356055979,1741875037849,-1775.37906911,0.00028376,2]
[356055980,1741875037859,-1775.37906911,0.00028376,2]
[356055981,1741875037869,-1775.37906911,0.00028376,2]
[356055982,1741875037879,-1775.37906911,0.00028376,2]
[356055983,1741875037888,-500.0,0.00028376,18]
[356055984,1741875037900,-1794.53,0.00028376,18]
[356055985,1741875037909,-1583.12,0.00028376,18]
[356055986,1741875037919,-1745.29,0.00028376,18]
[356055987,1741875037928,-1752.63,0.00028376,18]
[356055988,1741875037938,-3459.31,0.00028376,18]
[356055989,1741875037948,-941.99,0.00028376,18]
[356055990,1741875037958,-184.833944,0.00028376,18]
[356055991,1741875037967,-500.0,0.00028376,18]
[356055992,1741875037977,-1012.98,0.00028376,18]
[356055993,1741875037987,-277.156935,0.00028376,18]
[356055994,1741875037998,-1128.28,0.00028376,18]
[356055995,1741875038008,-1095.07,0.00028376,18]
[356055996,1741875038018,-1877.22,0.00028376,18]
[356055997,1741875038028,-154.089564,0.00028376,18]
[356055998,1741875038038,-7605.16,0.00028376,2]
[356055999,1741875038051,-789.13,0.00028376,18]
[356056000,1741875038061,-1311.0,0.00028376,18]
[356056001,1741875038071,-2131.98,0.00028376,18]
[356056002,1741875038081,-925.26,0.00028376,18]
[356056003,1741875038092,-500.0,0.00028376,18]
[356056004,1741875038101,-1673.46,0.00028376,18]
[356056005,1741875038111,-1660.54,0.00028376,18]
[356056006,1741875038120,-500.0,0.00028376,18]
[356056007,1741875038130,-2739.89,0.00028376,18]
[356056008,1741875038140,-1306.72,0.00028376,18]
[356056009,1741875038151,-1046.33,0.00028376,18]
[356056010,1741875038161,-1431.25,0.00028376,18]
[356056011,1741875038171,-1384.73,0.00028376,18]
[356056012,1741875038181,-798.93,0.00028376,18]
[356056013,1741875038190,-820.82,0.00028376,18]
[356056014,1741875038199,-1017.98,0.00028376,18]
[356056015,1741875038208,-2377.14,0.00028376,18]
[356056016,1741875038218,-2311.14,0.00028376,18]
[356056017,1741875038228,-500.0,0.00028376,18]
[356056018,1741875038237,-2455.26,0.00028376,18]
[356056019,1741875038246,-1957.23,0.00028376,18]
[356056020,1741875038256,-1690.29,0.00028376,18]
[356056021,1741875038265,-3218.22,0.00028376,18]
[356056022,1741875038275,-1832.75,0.00028376,18]
[356056023,1741875038284,-5607.25,0.00028376,18]
[356056024,1741875038294,-1102.12,0.00028376,18]
[356056025,1741875038303,-1003.32,0.00028376,18]
[356056026,1741875038312,-1422.69,0.00028376,18]
[356056027,1741875038321,-1631.98,0.00028376,18]
[356056028,1741875038330,-500.0,0.00028376,18]
[356056029,1741875038340,-1728.26,0.00028376,18]
[356056030,1741875038349,-1355.65,0.00028376,18]
[356056031,1741875038358,-6707.72,0.00028376,18]
[356056032,1741875038368,-661.38,0.00028376,18]
[356056033,1741875038377,-500.0,0.00028376,18]
[356056034,1741875038387,-500.0,0.00028376,18]
[356056035,1741875038397,-896.49,0.00028376,18]
[356056036,1741875038408,-500.0,0.00028376,18]
[356056037,1741875038419,-927.49,0.00028376,18]
[356056038,1741875038428,-903.47,0.00028376,18]
[356056039,1741875038437,-1164.54,0.00028376,18]
[356056040,1741875038447,-663.16,0.00028376,18]
[356056041,1741875038456,-500.0,0.00028376,18]
[356056042,1741875038466,-1123.76,0.00028376,18]
[356056043,1741875038476,-1010.72,0.00028376,18]
[356056044,1741875038485,-693.58,0.00028376,18]
[356056045,1741875038495,-24087.63477253,0.00028377,2]
[356056046,1741875038507,-1360.21613656,0.00028377,2]
[356056050,1741875039810,-79507.20124692,0.00028377,2]
[356056051,1741875039933,-610.2027744,0.00028377,2]
[356056052,1741875039945,-299.9249473,0.00028377,2]
[356056061,1741875042595,-150.39439972,0.00028298,2]
[356056062,1741875042604,-500.0,0.00028376,18]
[356056063,1741875042614,-24016.28967364,0.00028377,2]
[356056064,1741875042701,-259.11610951,0.00028377,2]
[356056065,1741875042712,-5297.63994395,0.00028377,2]
[356056066,1741875042724,-4727.92676812,0.00028377,2]
[356056067,1741875042736,-40725.34924707,0.00028377,2]
[356056068,1741875042747,-3525.24219867,0.00028377,2]
[356056069,1741875044243,-388.40595379,0.00028377,2]
[356056070,1741875044263,-900.0,0.00028377,2]
[356056073,1741875045542,-150.39439972,0.00028304,2]
[356056074,1741875045552,-294.10560058,0.00028377,2]
[356056075,1741875045565,-1061.45546459,0.00028377,2]
[356056076,1741875045577,-2287.18105403,0.00028377,2]
[356056077,1741875045597,-579.42209122,0.00028377,2]
[356056078,1741875045609,-73324.05237798,0.00028377,2]
[356056079,1741875045619,-413.445,0.00028379,2]
[356056080,1741875045629,-1147.0,0.00028422,2]
[356056081,1741875045639,-1028.20485807,0.00028441,30]
[356056082,1741875045649,-151.51,0.00028445,2]
[356056083,1741875045661,-500.0,0.00028446,18]
[356056084,1741875045671,-336.07224448,0.00028447,2]
[356056085,1741875045680,-301.712121,0.00028447,7]
[356056086,1741875045690,-4432.86294939,0.00028447,2]
[356056087,1741875045706,-477.33342646,0.00028447,2]
[356056088,1741875045717,-4167.89999999,0.00028447,2]
[356056089,1741875045729,-978.94832772,0.00028447,2]
[356056090,1741875045741,-4051.81618976,0.00028447,2]
[356056091,1741875045756,-16394.75,0.00028447,2]
[356056092,1741875045768,-37505.12223538,0.00028447,2]
[356056093,1741875045778,-500.0,0.00028455,18]
[356056094,1741875045787,-1306.72,0.00028455,18]
[356056095,1741875045797,-1431.25,0.00028455,18]
[356056096,1741875045807,-798.93,0.00028455,18]
[356056098,1741875045816,-1017.98,0.00028455,18]
[356056099,1741875045826,-2311.14,0.00028455,18]
[356056100,1741875045835,-500.0,0.00028455,18]
[356056101,1741875045845,-1957.23,0.00028455,18]
[356056102,1741875045855,-1832.75,0.00028455,18]
[356056103,1741875045864,-1102.12,0.00028455,18]
[356056104,1741875045873,-1003.32,0.00028455,18]
[356056105,1741875045883,-1354.93776612,0.00028455,18]
[356056106,1741875045898,-277.04223388,0.00028455,18]
[356056107,1741875045909,-500.0,0.00028455,18]
[356056108,1741875045919,-1082.82686262,0.00028455,18]
[356056109,1741875045931,-272.82313738,0.00028455,18]
[356056111,1741875045942,-661.38,0.00028455,18]
[356056112,1741875045953,-500.0,0.00028455,18]
[356056113,1741875045962,-500.0,0.00028455,18]
[356056114,1741875045972,-642.1689716,0.00028455,18]
[356056115,1741875045992,-254.3210284,0.00028455,18]
[356056116,1741875046002,-500.0,0.00028455,18]
[356056117,1741875046011,-66.6689716,0.00028455,18]
[356056126,1741875909068,150000.0,0.0001,2]
[356056127,1741875909100,55106.90252057,0.0001,2]
[356056130,1741876083031,28262.63833763,0.0001,2]
[356056143,1741876231648,-824.2,0.00025156,2]
[356056144,1741876231658,-209.59422095,0.00025342,120]
[356056147,1741876231668,-152.0,0.00025342,120]
[356056150,1741876231678,-600.0,0.00026715,2]
[356056153,1741876231688,-801.96,0.00026849,2]
[356056156,1741876231698,-500.0,0.00027049,2]
[356056158,1741876231707,-175.35,0.00027084,2]
[356056160,1741876231719,-456.96,0.00027085,120]
[356056162,1741876231728,-300.0,0.00027148,2]
[356056163,1741876231737,-20084.75,0.00027149,2]
[356056164,1741876231746,-250.0,0.00027162,2]
[356056165,1741876231755,-150.0,0.00027169,2]
[356056166,1741876231764,-1000.0,0.00027197,2]
[356056167,1741876231774,-2000.0,0.00027261,2]
[356056168,1741876231784,-150.0,0.00027299,2]
[356056169,1741876231793,-200.0,0.000273,9]
[356056170,1741876231805,-150.99,0.000273,2]
[356056171,1741876231814,-2821.25,0.000273,2]
[356056172,1741876231824,-1626.98,0.000273,2]
[356056173,1741876231833,-1462.17,0.000273,2]
[356056174,1741876231843,-4130.46854678,0.000273,2]
[356056175,1741876231855,-1000.0,0.000273,2]
[356056176,1741876231867,-2147.29,0.000273,2]
[356056177,1741876231891,-514.53413072,0.000273,2]
[356056178,1741876231915,-2207.6973225,0.000273,2]
[356056179,1741876231925,-300.0,0.000273,9]
[356056180,1741876231935,-200.0,0.0002733,2]
[356056181,1741876231945,-299.99,0.0002733,12]
[356056182,1741876231955,-487.68,0.0002733,2]
[356056183,1741876231966,-642.48,0.0002733,2]
[356056184,1741876231976,-265.49,0.00027391,2]
[356056185,1741876231985,-500.0,0.000274,10]
[356056186,1741876231995,-700.0,0.000274,10]
[356056187,1741876232005,-824.2,0.0002742,2]
[356056188,1741876232015,-156.57,0.00027426,30]
[356056189,1741876232024,-700.0,0.000275,10]
[356056190,1741876232034,-1100.0,0.000275,10]
[356056191,1741876232043,-1000.0,0.000276,10]
[356056192,1741876232053,-895.58934342,0.000276,10]
[356056193,1741876232064,-504.41065658,0.000276,10]
[356056194,1741876232073,-1300.0,0.000277,10]
[356056195,1741876232082,-81.97019163,0.000277,10]
[356056196,1741876232094,-337.55144945,0.000277,10]
[356056197,1741876232121,-415.09721781,0.000277,10]
[356056198,1741876232132,-308.807424,0.000277,10]
[356056199,1741876232144,-656.57371711,0.000277,10]
[356056200,1741876232153,-200.0,0.000278,10]
[356056201,1741876232162,-300.0,0.000278,10]
[356056203,1741876232172,-778.74,0.00027844,2]
[356056205,1741876232182,-182.6,0.00027844,2]
[356056207,1741876232191,-1934.98444186,0.000279,2]
[356056209,1741876232200,-200.0,0.000279,10]
[356056211,1741876232210,-201.89690782,0.000279,4]
[356056213,1741876232223,-300.0,0.000279,10]
[356056215,1741876232233,-167.78,0.00027964,2]
[356056217,1741876232242,-168.1018418,0.00027964,4]
[356056219,1741876232252,-289.23885332,0.0002798,2]
[356056221,1741876232261,-550.0,0.0002798,2]
[356056223,1741876232271,-150.0,0.0002798,2]
[356056225,1741876232280,-8573.91310042,0.00027997,31]
[356056227,1741876232290,-246.14024,0.0002816,41]
[356056229,1741876232299,-173.632,0.00028176,19]
[356056231,1741876232309,-1149.612,0.00028176,19]
[356056233,1741876232318,-3602.38745534,0.0002818,2]
[356056235,1741876232327,-326.6993,0.00028267,2]
[356056237,1741876232337,-314.9332,0.00028267,2]
[356056238,1741876232347,-1572.4869,0.00028275,2]
[356056258,1741876232588,-614.7553,0.00028275,2]
[356056260,1741876232601,-267.5407,0.00028275,2]
[356056262,1741876232611,-8790.3423,0.00028276,2]
[356056263,1741876232620,-500.0871,0.00028277,2]
[356056265,1741876232630,-150.39439972,0.00028315,2]
[356056266,1741876232639,-150.39439972,0.00028318,2]
[356056268,1741876232648,-150.39439972,0.00028322,2]
[356056270,1741876232658,-1948.5284833,0.00028324,2]
[356056271,1741876232668,-150.39439972,0.00028325,2]
[356056273,1741876232677,-150.39439972,0.00028328,2]
[356056275,1741876232687,-150.39439972,0.00028331,2]
[356056276,1741876232696,-2500.0,0.00028332,2]
[356056278,1741876232705,-401.8294,0.00028333,2]
[356056280,1741876232719,-150.39424958,0.00028333,2]
[356056281,1741876232729,-222.0,0.00028334,2]
[356056283,1741876232739,-150.39439972,0.00028335,2]
[356056285,1741876232748,-150.39439972,0.00028338,2]
[356056286,1741876232758,-853.3364,0.0002834,3]
[356056288,1741876232768,-150.39424957,0.00028341,2]
[356056290,1741876232778,-150.39439972,0.00028341,2]
[356056292,1741876232787,-150.39439972,0.00028344,2]
[356056294,1741876232796,-150.39439972,0.00028348,2]
[356056295,1741876232806,-150.39424957,0.00028348,2]
[356056297,1741876232816,-150.39439972,0.00028351,2]
[356056299,1741876232825,-1742.3436,0.00028355,2]
[356056301,1741876232835,-150.39424957,0.00028356,2]
[356056302,1741876232848,-936.1814,0.00028356,2]
[356056304,1741876232857,-150.39424957,0.00028363,2]
[356056305,1741876232867,-159.21754412,0.00028373,5]
[356056306,1741876232877,-500.0,0.00028375,18]
[356056307,1741876232886,-720.04,0.00028375,18]
[356056308,1741876232895,-979.96,0.00028375,18]
[356056309,1741876232906,-500.0,0.00028375,18]
[356056310,1741876232915,-500.0,0.00028375,18]
[356056311,1741876232925,-1096.58,0.00028375,18]
[356056312,1741876232934,-500.0,0.00028375,18]
[356056313,1741876232944,-500.0,0.00028375,18]
[356056314,1741876232953,-500.0,0.00028375,18]
[356056315,1741876232963,-500.0,0.00028375,18]
[356056316,1741876232974,-500.0,0.00028375,18]
[356056317,1741876232984,-523.86339646,0.00028375,18]
[356056318,1741876232994,-500.0,0.00028375,18]
[356056319,1741876233003,-500.0,0.00028375,18]
[356056320,1741876233012,-546.71,0.00028375,18]
[356056321,1741876233022,-970.49,0.00028375,18]
[356056322,1741876233032,-500.0,0.00028375,18]
[356056323,1741876233042,-751.43,0.00028375,18]
[356056324,1741876233052,-791.23,0.00028375,18]
[356056325,1741876233062,-5470.78,0.00028375,18]
[356056326,1741876233072,-527.3,0.00028375,18]
[356056327,1741876233083,-500.0,0.00028375,18]
[356056328,1741876233093,-500.0,0.00028375,18]
[356056329,1741876233103,-562.6,0.00028375,18]
[356056330,1741876233113,-500.0,0.00028375,18]
[356056331,1741876233123,-783.9,0.00028375,18]
[356056332,1741876233133,-500.0,0.00028375,18]
[356056333,1741876233143,-500.0,0.00028375,18]
[356056334,1741876233153,-500.0,0.00028375,18]
[356056335,1741876233163,-500.0,0.00028375,18]
[356056336,1741876233172,-500.0,0.00028375,18]
[356056337,1741876233182,-1240.72,0.00028376,18]
[356056338,1741876233191,-1348.9,0.00028376,18]
[356056339,1741876233201,-500.0,0.00028376,18]
[356056340,1741876233211,-782.21,0.00028376,18]
[356056341,1741876233224,-500.0,0.00028376,18]
[356056342,1741876233234,-500.0,0.00028376,18]
[356056343,1741876233244,-722.09,0.00028376,18]
[356056344,1741876233255,-656.39,0.00028376,18]
[356056345,1741876233265,-645.1,0.00028376,18]
[356056346,1741876233276,-500.68130155,0.00028376,18]
[356056347,1741876233286,-500.0,0.00028376,18]
[356056348,1741876233295,-500.0,0.00028376,18]
[356056349,1741876233305,-690.82,0.00028376,18]
[356056350,1741876233315,-906.21,0.00028376,18]
[356056351,1741876233324,-1224.87,0.00028376,18]
[356056352,1741876233335,-741.31,0.00028376,18]
[356056353,1741876233344,-500.0,0.00028376,18]
[356056354,1741876233354,-812.28,0.00028376,18]
[356056355,1741876233364,-500.0,0.00028376,18]
[356056356,1741876233374,-378.06301566,0.00028376,18]
[356056357,1741876233383,-500.33798889,0.00028376,18]
[356056358,1741876233393,-704.69,0.00028376,18]
[356056359,1741876233402,-833.41,0.00028376,18]
[356056360,1741876233415,-683.03,0.00028376,18]
[356056361,1741876233425,-751.09,0.00028376,18]
[356056362,1741876233435,-543.62,0.00028376,18]
[356056363,1741876233445,-500.0,0.00028376,18]
[356056364,1741876233457,-584.05,0.00028376,18]
[356056365,1741876233468,-518.06,0.00028376,18]
[356056366,1741876233478,-623.13,0.00028376,18]
[356056367,1741876233487,-900.75,0.00028376,18]
[356056368,1741876233498,-706.77,0.00028376,18]
[356056369,1741876233508,-500.0,0.00028376,18]
[356056370,1741876233519,-582.62,0.00028376,18]
[356056371,1741876233529,-500.0,0.00028376,18]
[356056372,1741876233539,-643.45,0.00028376,18]
[356056373,1741876233549,-507.67,0.00028376,18]
[356056374,1741876233558,-500.0,0.00028376,18]
[356056375,1741876233568,-1249.6,0.00028376,18]
[356056376,1741876233578,-500.0,0.00028376,18]
[356056377,1741876233587,-500.61267182,0.00028376,18]
[356056378,1741876233597,-500.0,0.00028376,18]
[356056379,1741876233606,-500.0,0.00028376,18]
[356056380,1741876233616,-560.45,0.00028376,18]
[356056381,1741876233625,-500.0,0.00028376,18]
[356056382,1741876233635,-500.0,0.00028376,18]
[356056383,1741876233644,-500.0,0.00028376,18]
[356056384,1741876233654,-915.59,0.00028376,18]
[356056385,1741876233663,-882.18,0.00028376,18]
[356056386,1741876233677,-500.0,0.00028376,18]
[356056387,1741876233687,-771.39,0.00028376,18]
[356056388,1741876233697,-504.94,0.00028376,18]
[356056389,1741876233706,-572.43,0.00028376,18]
[356056390,1741876233717,-517.57,0.00028376,18]
[356056391,1741876233727,-554.87,0.00028376,18]
[356056392,1741876233737,-777.59,0.00028376,18]
[356056393,1741876233747,-682.52,0.00028376,18]
[356056394,1741876233758,-196.0,0.000284,18]
[356056395,1741876233768,-196.0,0.000284,18]
[356056396,1741876233778,-197.0,0.000284,18]
[356056397,1741876233789,-4780.0,0.00028411,2]
[356056398,1741876233799,-151.51,0.00028414,2]
[356056399,1741876233809,-20863.1168975,0.00028415,2]
[356056400,1741876233820,-20863.1168975,0.00028415,2]
[356056401,1741876233830,-22360.4789421,0.00028423,2]
[356056402,1741876233840,-500.0,0.00028423,18]
[356056403,1741876233850,-500.0,0.00028423,18]
[356056404,1741876233860,-500.0,0.00028423,18]
[356056405,1741876233870,-511.8601706,0.00028423,18]
[356056406,1741876233880,-500.0,0.00028424,2]
[356056407,1741876233890,-202.35886172,0.00028424,2]
[356056408,1741876233899,-446.95972817,0.00028424,2]
[356056409,1741876233909,-500.0,0.00028424,2]
[356056410,1741876233919,-500.0,0.00028424,2]
[356056411,1741876233929,-422.20133345,0.00028424,2]
[356056412,1741876233939,-500.0,0.00028424,2]
[356056413,1741876233950,-500.0,0.00028424,2]
[356056414,1741876233960,-500.0,0.00028424,2]
[356056415,1741876233974,-500.0,0.00028424,2]
[356056416,1741876233985,-500.0,0.00028424,2]
[356056417,1741876233996,-500.0,0.00028424,2]
[356056418,1741876234006,-500.0,0.00028424,2]
[356056419,1741876234017,-500.0,0.00028424,2]
[356056420,1741876234027,-500.0,0.00028424,2]
[356056421,1741876234037,-162.87180971,0.00028424,2]
[356056422,1741876234047,-500.0,0.00028424,2]
[356056423,1741876234056,-500.0,0.00028424,2]
[356056424,1741876234066,-547.40159542,0.00028424,2]
[356056425,1741876234076,-500.0,0.00028424,2]
[356056426,1741876234087,-500.0,0.00028424,2]
[356056427,1741876234097,-500.0,0.00028424,2]
[356056428,1741876234107,-500.0,0.00028424,2]
[356056429,1741876234116,-600.0,0.00028424,2]
[356056430,1741876234126,-22360.4789421,0.00028424,2]
[356056431,1741876234136,-41726.2337951,0.00028424,2]
[356056432,1741876234147,-500.0,0.00028424,18]
[356056433,1741876234157,-500.0,0.00028424,18]
[356056434,1741876234167,-500.0,0.00028424,18]
[356056435,1741876234177,-500.0,0.00028424,18]
[356056436,1741876234187,-500.0,0.00028424,18]
[356056437,1741876234197,-500.0,0.00028424,18]
[356056438,1741876234207,-500.0,0.00028424,18]
[356056439,1741876234218,-500.0,0.00028424,18]
[356056440,1741876234228,-500.0,0.00028424,18]
[356056441,1741876234238,-789.45589269,0.00028424,15]
[356056442,1741876234249,-22360.4789421,0.00028424,2]
[356056443,1741876234259,-380128.142017,0.00028425,2]
[356056444,1741876234269,-375536.104156,0.00028425,2]
[356056445,1741876234278,-44720.9578843,0.00028425,2]
[356056446,1741876234288,-22360.4789421,0.00028425,2]
[356056447,1741876234299,-500.0,0.0002843,18]
[356056448,1741876234309,-500.0,0.0002843,18]
[356056449,1741876234319,-500.0,0.0002843,18]
[356056450,1741876234328,-151.51,0.00028431,2]
[356056451,1741876234339,-62589.3506926,0.00028431,2]
[356056452,1741876234350,-41726.2337951,0.00028432,2]
[356056453,1741876234360,-1197.82,0.00028432,18]
[356056454,1741876234370,-1197.82,0.00028432,18]
[356056455,1741876234395,-500.0,0.00028432,18]
[356056456,1741876234406,-500.0,0.00028432,18]
[356056457,1741876234418,-933.15,0.00028432,18]
[356056458,1741876234429,-933.15,0.00028432,18]
[356056459,1741876234439,-1311.98,0.00028432,18]
[356056460,1741876234450,-1311.98,0.00028432,18]
[356056461,1741876234461,-732.35,0.00028432,18]
[356056462,1741876234473,-732.35,0.00028432,18]
[356056463,1741876234483,-2118.55,0.00028432,18]
[356056464,1741876234496,-2118.55,0.00028432,18]
[356056465,1741876234507,-500.0,0.00028432,18]
[356056466,1741876234516,-500.0,0.00028432,18]
[356056467,1741876234525,-1680.02,0.00028432,18]
[356056468,1741876234535,-1680.02,0.00028432,18]
[356056469,1741876234545,-500.0,0.00028432,18]
[356056470,1741876234555,-500.0,0.00028432,18]
[356056471,1741876234565,-1010.28,0.00028432,18]
[356056472,1741876234575,-1010.28,0.00028432,18]
[356056473,1741876234585,-633.83,0.00028432,18]
[356056474,1741876234595,-633.83,0.00028432,18]
[356056475,1741876234605,-919.71,0.00028432,18]
[356056476,1741876234615,-919.71,0.00028432,18]
[356056477,1741876234625,-500.0,0.00028432,18]
[356056478,1741876234635,-500.0,0.00028432,18]
[356056479,1741876234645,-886.07,0.00028432,18]
[356056480,1741876234654,-886.07,0.00028432,18]
[356056481,1741876234664,-1495.99,0.00028432,18]
[356056482,1741876234675,-1495.99,0.00028432,18]
[356056483,1741876234684,-1504.19,0.00028432,18]
[356056484,1741876234694,-1504.19,0.00028432,18]
[356056485,1741876234705,-1254.05,0.00028432,18]
[356056486,1741876234714,-1254.05,0.00028432,18]
[356056487,1741876234725,-500.0,0.00028432,18]
[356056488,1741876234735,-500.0,0.00028432,18]
[356056489,1741876234745,-865.82,0.00028432,18]
[356056490,1741876234755,-865.82,0.00028432,18]
[356056491,1741876234764,-500.0,0.00028432,18]
[356056492,1741876234774,-1719.76,0.00028432,18]
[356056493,1741876234785,-500.0,0.00028432,18]
[356056494,1741876234795,-1719.76,0.00028432,18]
[356056495,1741876234805,-635.53,0.00028432,18]
[356056496,1741876234815,-635.53,0.00028432,18]
[356056497,1741876234824,-500.0,0.00028432,18]
[356056498,1741876234834,-500.0,0.00028432,18]
[356056499,1741876234844,-1748.46,0.00028432,18]
[356056500,1741876234853,-1748.46,0.00028432,18]
[356056501,1741876234863,-500.0,0.00028432,18]
[356056502,1741876234873,-500.0,0.00028432,18]
[356056503,1741876234883,-664.68,0.00028432,18]
[356056504,1741876234892,-664.68,0.00028432,18]
[356056505,1741876234902,-151.0,0.00028433,7]
[356056506,1741876234911,-1197.82,0.00028433,18]
[356056507,1741876234921,-500.0,0.00028433,18]
[356056508,1741876234931,-933.15,0.00028433,18]
[356056509,1741876234940,-1311.98,0.00028433,18]
[356056510,1741876234950,-732.35,0.00028433,18]
[356056511,1741876234960,-2118.55,0.00028433,18]
[356056512,1741876234971,-500.0,0.00028433,18]
[356056513,1741876234981,-1680.02,0.00028433,18]
[356056514,1741876234991,-500.0,0.00028433,18]
[356056515,1741876235001,-1010.28,0.00028433,18]
[356056516,1741876235011,-633.83,0.00028433,18]
[356056517,1741876235021,-919.71,0.00028433,18]
[356056518,1741876235032,-500.0,0.00028433,18]
[356056519,1741876235042,-886.07,0.00028433,18]
[356056520,1741876235051,-1495.99,0.00028433,18]
[356056521,1741876235061,-1504.19,0.00028433,18]
[356056522,1741876235070,-1254.05,0.00028433,18]
[356056523,1741876235079,-500.0,0.00028433,18]
[356056524,1741876235088,-865.82,0.00028433,18]
[356056525,1741876235098,-500.0,0.00028433,18]
[356056526,1741876235107,-1719.76,0.00028433,18]
[356056527,1741876235116,-635.53,0.00028433,18]
[356056528,1741876235126,-298.57120437,0.00028433,18]
[356056529,1741876235135,-500.0,0.00028433,18]
[356056530,1741876235144,-500.0,0.00028433,18]
[356056531,1741876235154,-1748.46,0.00028433,18]
[356056532,1741876235164,-500.0,0.00028433,18]
[356056533,1741876235173,-500.0,0.00028433,18]
[356056534,1741876235182,-664.68,0.00028433,18]
[356056535,1741876235191,-41726.2337951,0.00028433,2]
[356056536,1741876235201,-1517.16,0.00028434,18]
[356056537,1741876235210,-3315.17,0.00028434,18]
[356056538,1741876235220,-1679.6,0.00028434,18]
[356056539,1741876235229,-902.74,0.00028434,18]
[356056540,1741876235238,-614.05861113,0.00028434,18]
[356056541,1741876235248,-970.78,0.00028434,18]